fUSD/lending_fUSD_20260122
["ID","MTS","AMOUNT","RATE_DAILY","PERIOD"]
[403027273,1769083832499,-189.03685354,0.00016496,2]
[403027274,1769083832508,-500.0,0.00016496,2]
[403027275,1769083832517,-500.0,0.00016496,2]
[403027276,1769083832527,-500.0,0.00016496,2]
[403027277,1769083832537,-500.0,0.00016496,2]
[403027278,1769083832546,-500.0,0.00016496,2]
[403027279,1769083832555,-500.0,0.00016496,2]
[403027280,1769083832564,-500.0,0.00016496,2]
[403027281,1769083832573,-500.0,0.00016496,2]
[403027282,1769083832582,-500.0,0.00016496,2]
[403027283,1769083832591,-500.0,0.00016496,2]
[403027284,1769083832600,-500.0,0.00016496,2]
[403027285,1769083832610,-500.0,0.00016496,2]
[403027286,1769083832619,-500.0,0.00016496,2]
[403027287,1769083832628,-500.0,0.00016496,2]
[403027288,1769083832637,-500.0,0.00016496,2]
[403027289,1769083832646,-500.0,0.00016496,2]
[403027291,1769083832655,-500.0,0.00016496,2]
[403027293,1769083832665,-500.0,0.00016496,2]
[403027294,1769083832673,-500.0,0.00016496,2]
[403027295,1769083832682,-500.0,0.00016496,2]
[403027296,1769083832692,-500.0,0.00016496,2]
[403027297,1769083832701,-500.0,0.00016496,2]
[403027298,1769083832711,-500.0,0.00016496,2]
[403027299,1769083832720,-500.0,0.00016496,2]
[403027300,1769083832729,-500.0,0.00016496,2]
[403027301,1769083832738,-500.0,0.00016496,2]
[403027302,1769083832748,-500.0,0.00016496,2]
[403027303,1769083832757,-500.0,0.00016496,2]
[403027304,1769083832766,-500.0,0.00016496,2]
[403027305,1769083832775,-500.0,0.00016496,2]
[403027306,1769083832784,-500.0,0.00016496,2]
[403027307,1769083832793,-500.0,0.00016496,2]
[403027308,1769083832802,-590.69935021,0.00016496,2]
[403027309,1769083832812,-500.0,0.00016496,2]
[403027310,1769083832821,-288.42111377,0.00016496,2]
[403027311,1769083832830,-500.0,0.00016496,2]
[403027312,1769083832839,-500.0,0.00016496,2]
[403027313,1769083832848,-500.0,0.00016496,2]
[403027314,1769083832856,-85.08272858,0.00016496,2]
[403027315,1769083832869,-414.91727142,0.00016496,2]
[403027316,1769083832879,-500.0,0.00016496,2]
[403027317,1769083832889,-457.33510364,0.00016496,2]
[403027318,1769083832901,-42.66489636,0.00016496,2]
[403027319,1769083832914,-207.33510364,0.00016496,2]
[403027320,1769083832925,-292.66489636,0.00016496,2]
[403027321,1769083832934,-283.08510364,0.00016496,2]
[403027322,1769083832968,-216.91489636,0.00016496,2]
[403027323,1769083832977,-500.0,0.00016496,2]
[403027324,1769083832988,-500.0,0.00016496,2]
[403027325,1769083832998,-500.0,0.00016496,2]
[403027326,1769083833007,-314.84615287,0.00016496,2]
[403027327,1769083833035,-185.15384713,0.00016496,2]
[403027328,1769083833044,-500.0,0.00016496,2]
[403027329,1769083833054,-500.0,0.00016496,2]
[403027330,1769083833063,-500.0,0.00016496,2]
[403027331,1769083833072,-500.0,0.00016496,2]
[403027332,1769083833081,-500.0,0.00016496,2]
[403027333,1769083833090,-53.1821366,0.00016496,2]
[403027334,1769083833100,-446.8178634,0.00016496,2]
[403027335,1769083833109,-54.18537866,0.00016496,2]
[403027336,1769083833150,-433.32489386,0.00016496,2]
[403027337,1769083833161,-12.48972748,0.00016496,2]
[403027338,1769083833171,-500.0,0.00016496,2]
[403027339,1769083833180,-500.0,0.00016496,2]
[403027340,1769083833189,-500.0,0.00016496,2]
[403027341,1769083833199,-500.0,0.00016497,2]
[403027342,1769083833208,-500.0,0.00016498,2]
[403027343,1769083833217,-1053.17,0.00016498,2]
[403027344,1769083833226,-540.08705783,0.00016498,2]
[403027345,1769083833236,-217.98,0.00016498,2]
[403027346,1769083833246,-516.50754003,0.00016498,2]
[403027347,1769083833255,-500.0,0.00016498,2]
[403027348,1769083833265,-500.0,0.00016498,2]
[403027349,1769083833273,-500.0,0.00016498,2]
[403027350,1769083833283,-368.70990999,0.00016498,2]
[403027351,1769083833292,-500.0,0.00016498,2]
[403027352,1769083833302,-1000.0,0.000165,2]
[403027353,1769083833311,-500.0,0.00016599,2]
[403027354,1769083833320,-500.0,0.00016599,2]
[403027355,1769083833329,-596.95186764,0.00016599,2]
[403027356,1769083833339,-500.0,0.00016599,2]
[403027357,1769083833349,-500.0,0.00016599,2]
[403027358,1769083833358,-342.1996177,0.00016599,2]
[403027359,1769083833368,-500.0,0.00016599,2]
[403027360,1769083833377,-500.0,0.00016599,2]
[403027361,1769083833386,-500.0,0.00016599,2]
[403027362,1769083833395,-500.0,0.00016599,2]
[403027363,1769083833404,-503.99230319,0.00016771,2]
[403027364,1769083833414,-1053.17,0.00016772,2]
[403027365,1769083833423,-171.99,0.00016832,2]
[403027366,1769083833433,-978.0,0.00016973,2]
[403027367,1769083833442,-1489.92,0.00016975,2]
[403027368,1769083833452,-250.0,0.00017,2]
[403027369,1769083833461,-1053.17,0.00017046,2]
[403027370,1769083833471,-205.71,0.00017073,2]
[403027371,1769083833480,-219.26,0.00017175,2]
[403027372,1769083833489,-619.03731378,0.0001732,2]
[403027373,1769083833560,-500.0,0.00016496,2]
[403027374,1769083833569,-500.0,0.00016496,2]
[403027375,1769083833580,-434.13268622,0.0001732,2]
[403027376,1769083833591,-373.32093381,0.00017363,2]
[403027377,1769083833600,-198.83020825,0.00017433,2]
[403027378,1769083833609,-156.33215285,0.00017594,2]
[403027379,1769083833622,-896.83784715,0.00017594,2]
[403027380,1769083833632,-282.0,0.00017671,2]
[403027381,1769083833641,-500.0,0.00017673,2]
[403027382,1769083833651,-185.54585095,0.00017673,2]
[403027383,1769083833663,-81.86901394,0.00017673,2]
[403027384,1769083833672,-500.0,0.00017673,2]
[403027385,1769083833681,-343.65136961,0.00017673,2]
[403027386,1769083833690,-320.06698717,0.00017673,2]
[403027387,1769083833702,-179.93301283,0.00017673,2]
[403027388,1769083833712,-500.0,0.00017673,2]
[403027389,1769083833721,-502.19021569,0.00017673,2]
[403027390,1769083833731,-500.0,0.00017673,2]
[403027391,1769083833741,-500.0,0.00017673,2]
[403027392,1769083833750,-500.0,0.00017673,2]
[403027393,1769083833760,-500.0,0.00017673,2]
[403027394,1769083833770,-3500.0,0.000177,6]
[403027395,1769083833779,-171.99,0.00017718,2]
[403027396,1769083833788,-226.09995295,0.00017733,2]
[403027397,1769083833798,-279.92654979,0.00017733,2]
[403027406,1769083838941,-481.54510898,0.00016496,2]
[403027407,1769083838953,-18.45489102,0.00016496,2]
[403027408,1769083838963,-500.0,0.00016496,2]
[403027409,1769083838973,-118.9405677,0.00017733,2]
[403027410,1769083838983,-500.0,0.00017749,2]
[403027411,1769083838993,-250.0,0.00017783,2]
[403027412,1769083839003,-201.13374682,0.00017783,2]
[403027413,1769083839012,-195.0,0.00017783,2]
[403027414,1769083839021,-1489.92,0.00017784,2]
[403027415,1769083839031,-5200.0,0.000178,6]
[403027416,1769083839040,-1053.17,0.00017868,2]
[403027417,1769083839049,-4838.7187,0.00017897,2]
[403027418,1769083839059,-218.76593487,0.00017898,2]
[403027419,1769083839068,-500.0,0.00017899,2]
[403027420,1769083839077,-10000.0,0.000179,2]
[403027421,1769083839086,-7000.0,0.000179,6]
[403027422,1769083839095,-908.79943748,0.000179,2]
[403027423,1769083839105,-1680.0,0.00017903,2]
[403027424,1769083839114,-1926.4181119,0.0001799,2]
[403027425,1769083839123,-500.0,0.00017996,2]
[403027426,1769083839132,-500.0,0.00017996,2]
[403027427,1769083839141,-150.0,0.00017996,2]
[403027428,1769083839150,-15258.37184462,0.00017998,2]
[403027429,1769083839161,-400.0,0.00017998,2]
[403027430,1769083839192,-504.23029264,0.00017998,2]
[403027431,1769083839202,-40208.43170259,0.00017998,2]
[403027432,1769083839213,-1318.11679961,0.00017998,2]
[403027433,1769083839224,-6921.46469655,0.00017998,2]
[403027434,1769083839238,-373.38091558,0.00017998,2]
[403027435,1769083839248,-1396.78893979,0.00017998,2]
[403027436,1769083839259,-3341.54631403,0.00017998,2]
[403027437,1769083839270,-190650.45271329,0.00017998,2]
[403027438,1769083839282,-8766.39340091,0.00017998,2]
[403027439,1769083839294,-7668.87792627,0.00017998,2]
[403027440,1769083839331,-1542.12434419,0.00017998,2]
[403027441,1769083839344,-638.55537377,0.00017998,2]
[403027442,1769083839357,-832.19999971,0.00017998,2]
[403027443,1769083839414,-431112.91938885,0.00017998,2]
[403027444,1769083839423,-2586.3010493,0.00017998,2]
[403027445,1769083839432,-6856.0665671,0.00017998,2]
[403027446,1769083839442,-134868.741283,0.00017998,2]
[403027447,1769083839451,-1556.04,0.00017998,2]
[403027448,1769083839460,-1556.04,0.00017998,2]
[403027449,1769083839470,-1556.04,0.00017998,2]
[403027450,1769083839479,-1556.04,0.00017998,2]
[403027451,1769083839488,-546.53,0.00017998,2]
[403027452,1769083839497,-249.22843217,0.00017999,2]
[403027453,1769083839506,-155.421,0.00017999,2]
[403027454,1769083839516,-500.0,0.00017999,2]
[403027455,1769083839525,-500.0,0.00017999,2]
[403027456,1769083839537,-500.0,0.00017999,2]
[403027457,1769083839546,-300.0,0.00017999,2]
[403027458,1769083839555,-565.1769459,0.00017999,2]
[403027459,1769083839564,-435.91029719,0.00017999,2]
[403027460,1769083839573,-500.0,0.00017999,2]
[403027461,1769083839582,-500.0,0.00017999,2]
[403027462,1769083839591,-636.54920827,0.00017999,2]
[403027463,1769083839600,-500.0,0.00017999,2]
[403027464,1769083839610,-500.0,0.00017999,2]
[403027465,1769083839619,-256.5212138,0.00017999,2]
[403027466,1769083839628,-179.56484966,0.00017999,2]
[403027467,1769083839637,-62520.76309262,0.00018,2]
[403027468,1769083839647,-69380.48312257,0.00018,2]
[403027469,1769083839657,-1595195.28078228,0.00018,2]
[403027470,1769083839666,-1277.78708036,0.00018,2]
[403027471,1769083839674,-200.0,0.00018,2]
[403027472,1769083839683,-151.0,0.00018,2]
[403027473,1769083839692,-253.08537508,0.00018,2]
[403027474,1769083839701,-200.0,0.00018,2]
[403027475,1769083839709,-151.0,0.00018,2]
[403027476,1769083839718,-151.0,0.00018,2]
[403027477,1769083839727,-151.0,0.00018,2]
[403027478,1769083839736,-151.0,0.00018,2]
[403027479,1769083839746,-153.371315,0.00018,2]
[403027480,1769083839755,-151.0,0.00018,2]
[403027481,1769083839764,-153.371315,0.00018,2]
[403027482,1769083839776,-153.371315,0.00018,2]
[403027483,1769083839786,-153.371315,0.00018,2]
[403027484,1769083839795,-151.0,0.00018,2]
[403027485,1769083839804,-316.26,0.00018135,2]
[403027486,1769083839812,-1053.17,0.00018142,2]
[403027487,1769083839821,-200.0,0.0001818,2]
[403027488,1769083839830,-200.0,0.0001818,2]
[403027489,1769083839839,-1001.67447138,0.00018221,2]
[403027490,1769083839848,-1000.0,0.00018221,2]
[403027491,1769083839857,-1000.0,0.00018221,2]
[403027492,1769083839866,-501.64580082,0.00018221,2]
[403027493,1769083839875,-509.50904316,0.00018221,2]
[403027494,1769083839885,-1000.0,0.00018221,2]
[403027495,1769083839894,-540.54661536,0.00018221,2]
[403027496,1769083839904,-166.66,0.00018234,2]
[403027497,1769083839916,-459.58,0.00018259,2]
[403027498,1769083839925,-200.0,0.00018362,2]
[403027499,1769083839934,-1053.17,0.00018416,2]
[403027500,1769083839944,-200.0,0.00018545,2]
[403027501,1769083839953,-1489.92,0.00018592,2]
[403027502,1769083839963,-171.99,0.00018603,2]
[403027504,1769083839973,-1053.17,0.0001869,2]
[403027505,1769083839982,-200.0,0.00018731,2]
[403027506,1769083839991,-1500.0,0.00018768,2]
[403027507,1769083840000,-502.17327714,0.00018768,2]
[403027508,1769083840009,-1500.0,0.00018768,2]
[403027509,1769083840018,-166.66,0.00018782,2]
[403027510,1769083840028,-151.3,0.000188,2]
[403027511,1769083840037,-151.3,0.000188,2]
[403027512,1769083840046,-151.3,0.000188,2]
[403027513,1769083840055,-151.3,0.000188,2]
[403027514,1769083840064,-151.3,0.000188,2]
[403027516,1769083840076,-151.3,0.000188,2]
[403027518,1769083840085,-151.3,0.000188,2]
[403027519,1769083840094,-151.3,0.000188,2]
[403027520,1769083840103,-151.3,0.000188,2]
[403027521,1769083840113,-151.3,0.000188,2]
[403027522,1769083840122,-151.3,0.000188,2]
[403027523,1769083840132,-151.3,0.000188,2]
[403027524,1769083840141,-151.3,0.000188,2]
[403027525,1769083840150,-151.3,0.000188,2]
[403027526,1769083840158,-151.3,0.000188,2]
[403027527,1769083840167,-151.3,0.000188,2]
[403027528,1769083840176,-151.3,0.000188,2]
[403027530,1769083840186,-151.3,0.000188,2]
[403027531,1769083840197,-459.58,0.00018896,2]
[403027532,1769083840206,-150.81524873,0.000189,2]
[403027533,1769083840216,-1053.17,0.00018964,2]
[403027534,1769083840225,-5166.25962011,0.00019,2]
[403027535,1769083840234,-290.81518794,0.00019,2]
[403027538,1769083840244,-151.0,0.00019009,2]
[403027539,1769083840253,-151.0,0.00019009,2]
[403027540,1769083840263,-151.0,0.00019009,2]
[403027541,1769083840272,-200.39976832,0.00019082,2]
[403027542,1769083840282,-500.0,0.00019178,2]
[403027543,1769083840291,-500.0,0.00019178,2]
[403027544,1769083840300,-463.44846878,0.00019178,2]
[403027545,1769083840310,-500.0,0.00019178,2]
[403027547,1769083840319,-500.0,0.00019178,2]
[403027548,1769083840328,-500.0,0.00019178,2]
[403027549,1769083840338,-500.0,0.00019178,2]
[403027550,1769083840347,-500.0,0.00019178,2]
[403027551,1769083840356,-500.0,0.00019178,2]
[403027552,1769083840365,-500.0,0.00019178,2]
[403027553,1769083840374,-150.0,0.00019178,2]
[403027554,1769083840383,-151.0,0.00019178,2]
[403027555,1769083840392,-150.33,0.00019178,30]
[403027556,1769083840405,-1053.17,0.00019238,2]
[403027557,1769083840415,-2000.0,0.00019316,2]
[403027558,1769083840425,-2000.0,0.00019316,2]
[403027559,1769083840434,-166.66,0.0001933,2]
[403027560,1769083840443,-192.21,0.00019338,2]
[403027561,1769083840453,-192.21,0.00019388,2]
[403027562,1769083840462,-1489.92,0.000194,2]
[403027563,1769083840471,-192.21,0.00019439,2]
[403027564,1769083840481,-171.99,0.00019489,2]
[403027565,1769083840490,-192.21,0.0001949,2]
[403027566,1769083840499,-1053.17,0.00019512,2]
[403027567,1769083840509,-459.58,0.00019533,2]
[403027568,1769083840518,-192.21,0.00019541,2]
[403027569,1769083840529,-192.21,0.00019592,2]
[403027570,1769083840538,-506.0,0.000196,2]
[403027571,1769083840547,-192.21,0.00019643,2]
[403027572,1769083840557,-2351.0,0.00019666,2]
[403027573,1769083840566,-192.21,0.00019694,2]
[403027574,1769083840575,-596.68135309,0.00019733,2]
[403027575,1769083840584,-192.21,0.00019745,2]
[403027576,1769083840594,-151.3,0.00019795,2]
[403027577,1769083840603,-192.21,0.00019796,2]
[403027578,1769083840612,-155.0,0.00019799,2]
[403027579,1769083840622,-1203.7821074,0.00019805,2]
[403027580,1769083840632,-2801.6,0.00019837,2]
[403027581,1769083840641,-166.66,0.00019839,2]
[403027582,1769083840652,-192.21,0.00019846,2]
[403027583,1769083840662,-1996.38900777,0.00019864,2]
[403027584,1769083840671,-1407.80769407,0.00019864,2]
[403027585,1769083840680,-2586.3010493,0.00019888,2]
[403027586,1769083840690,-6856.0665671,0.00019888,2]
[403027587,1769083840699,-192.21,0.00019897,2]
[403027588,1769083840708,-8700.0,0.000199,7]
[403027589,1769083840717,-151.3,0.0001994,2]
[403027590,1769083840726,-192.21,0.00019948,2]
[403027591,1769083840735,-162309.02028933,0.0001995,15]
[403027592,1769083840744,-150.0,0.00019973,2]
[403027593,1769083840753,-151.3,0.0001999,2]
[403027594,1769083840763,-192.21,0.00019999,2]
[403027595,1769083840772,-1532.52523808,0.0002,2]
[403027596,1769083840783,-25582.11960735,0.0002,2]
[403027597,1769083840792,-431.0146624,0.0002,4]
[403027598,1769083840802,-499.9998,0.0002,2]
[403027599,1769083840813,-150.0,0.0002,2]
[403027600,1769083840824,-238.3048284,0.0002,2]
[403027601,1769083840834,-192.21,0.0002005,2]
[403027602,1769083840844,-192.21,0.00020101,2]
[403027603,1769083840853,-9999.99,0.00020145,2]
[403027604,1769083840863,-9999.99,0.00020145,2]
[403027605,1769083840875,-2036.91,0.00020145,2]
[403027606,1769083840886,-316.26,0.0002015,2]
[403027607,1769083840896,-192.21,0.00020152,2]
[403027608,1769083840907,-192.21,0.00020203,2]
[403027609,1769083840921,-192.21,0.00020253,2]
[403027610,1769083840931,-166.66,0.00020257,2]
[403027611,1769083840941,-192.21,0.00020304,2]
[403027612,1769083840951,-171.99,0.00020375,2]
[403027613,1769083840960,-1822.72110573,0.00020545,2]
[403027614,1769083840969,-154.15,0.00020548,2]
[403027615,1769083840979,-503.44696293,0.0002055,2]
[403027616,1769083840991,-166.66,0.00020675,2]
[403027617,1769083841001,-150.0,0.000207,7]
[403027618,1769083841010,-396.82914947,0.0002087,2]
[403027619,1769083841020,-166.66,0.00021092,2]
[403027620,1769083841029,-151.82,0.00021111,2]
[403027621,1769083841038,-807.3252,0.00021233,7]
[403027622,1769083841047,-171.99,0.00021261,2]
[403027623,1769083841056,-941.776,0.00021319,2]
[403027624,1769083841065,-1203.0,0.00021319,2]
[403027625,1769083841074,-4828.0,0.00021319,2]
[403027626,1769083841083,-2441.0,0.00021319,2]
[403027627,1769083841092,-6565.0,0.00021319,2]
[403027628,1769083841102,-151.3,0.00021457,2]
[403027629,1769083841111,-61565.3346494,0.00021467,2]
[403027630,1769083841122,-166.66,0.0002151,2]
[403027631,1769083841132,-150.039,0.00021517,2]
[403027632,1769083841144,-150.169,0.00021517,2]
[403027633,1769083841154,-210.554,0.00021517,2]
[403027634,1769083841163,-250.0,0.00021517,2]
[403027635,1769083841173,-150.139,0.00021517,2]
[403027636,1769083841182,-191.295,0.00021517,2]
[403027637,1769083841192,-164.101,0.00021517,2]
[403027638,1769083841202,-212.373,0.00021517,2]
[403027639,1769083841223,-250.0,0.00021517,2]
[403027640,1769083841240,-170.0,0.00021517,2]
[403027641,1769083841251,-230.574,0.00021517,2]
[403027642,1769083841264,-1332.0,0.00021517,2]
[403027643,1769083841278,-615.979,0.00021517,2]
[403027644,1769083841287,-1407.0,0.00021517,2]
[403027645,1769083841296,-276.0,0.00021517,2]
[403027646,1769083841305,-155.0,0.00021599,2]
[403027647,1769083841315,-3292.0,0.00021602,2]
[403027648,1769083841324,-1203.7821074,0.0002161,2]
[403027649,1769083841333,-559.98,0.0002173,2]
[403027650,1769083841343,-2586.3010493,0.00021778,2]
[403027651,1769083841352,-6856.0665671,0.00021778,2]
[403027652,1769083841361,-5000.0,0.00021918,2]
[403027653,1769083841370,-151.0,0.00021918,2]
[403027654,1769083841379,-154.0,0.00021918,2]
[403027655,1769083841389,-154.0,0.00021918,2]
[403027656,1769083841399,-154.0,0.00021918,2]
[403027657,1769083841408,-762.09,0.00021925,2]
[403027658,1769083841418,-166.66,0.00021928,30]
[403027659,1769083841427,-2801.6,0.00021944,2]
[403027660,1769083841436,-193.2322498,0.00021981,4]
[403027661,1769083841447,-151.3,0.0002199,2]
[403027662,1769083841456,-151.3,0.0002199,2]
[403027663,1769083841465,-1160.27814447,0.00022,2]
[403027664,1769083841474,-163.53,0.00022,2]
[403027665,1769083841484,-160.0,0.00022,2]
[403027666,1769083841493,-135271.78,0.00022,2]
[403027667,1769083841503,-559.98,0.00022004,2]
[403027668,1769083841512,-151.3,0.00022071,2]
[403027669,1769083841522,-151.3,0.00022071,2]
[403027670,1769083841531,-158630.7848435,0.00022081,2]
[403027671,1769083841540,-30093.2838414,0.00022081,2]
[403027672,1769083841549,-156.075191,0.00022081,2]
[403027673,1769083841559,-151.0,0.00022081,2]
[403027674,1769083841569,-307.12,0.00022094,14]
[403027675,1769083841578,-494.3716957,0.000221,2]
[403027676,1769083841587,-240.22289408,0.0002211,2]
[403027677,1769083841596,-171.99,0.00022147,2]
[403027678,1769083841605,-316.26,0.00022165,2]
[403027679,1769083841622,-762.09,0.00022199,2]
[403027680,1769083841641,-170.23,0.000222,7]
[403027681,1769083841651,-258.73,0.00022206,2]
[403027682,1769083841660,-1926.4181119,0.00022231,2]
[403027683,1769083841671,-13737.0829799,0.00022241,2]
[403027684,1769083841681,-559.98,0.00022278,2]
[403027685,1769083841700,-762.09,0.00022473,2]
[403027686,1769083841710,-151.0,0.00022473,2]
[403027687,1769083841719,-151.0,0.00022473,2]
[403027688,1769083841729,-153.371315,0.00022473,2]
[403027689,1769083841740,-151.0,0.00022473,2]
[403027690,1769083841750,-153.371315,0.00022473,2]
[403027691,1769083841759,-153.371315,0.00022473,2]
[403027692,1769083841767,-153.371315,0.00022473,2]
[403027693,1769083841776,-151.3,0.0002249,2]
[403027694,1769083841786,-35488.81033828,0.000225,2]
[403027695,1769083841795,-559.98,0.00022552,2]
[403027696,1769083841805,-908.79943744,0.00022574,2]
[403027697,1769083841814,-255.44823583,0.000226,2]
[403027698,1769083841823,-523.13162182,0.0002271,2]
[403027699,1769083841833,-1918.94,0.00022761,2]
[403027700,1769083842077,-151.82,0.00022884,2]
[403027701,1769083842087,-222.0,0.0002295,2]
[403027702,1769083842097,-506.0,0.00022956,5]
[403027703,1769083842107,-222.0,0.00022987,2]
[403027704,1769083842116,-151.3,0.0002299,2]
[403027705,1769083842127,-35395.3124266,0.00022992,2]
[403027706,1769083842136,-6714.7192429,0.00022992,2]
[403027707,1769083842146,-99102.67805253,0.00023,2]
[403027708,1769083842155,-222.0,0.00023018,2]
[403027709,1769083842164,-171.99,0.00023033,2]
[403027710,1769083842175,-222.0,0.00023174,2]
[403027711,1769083842185,-222.0,0.00023287,2]
[403027712,1769083842195,-222.0,0.000233,2]
[403027713,1769083842205,-222.0,0.00023331,2]
[403027714,1769083842214,-222.0,0.00023359,2]
[403027715,1769083842224,-921.0,0.000234,2]
[403027716,1769083842234,-222.0,0.00023407,2]
[403027717,1769083842244,-1203.7821074,0.00023416,2]
[403027718,1769083842253,-222.0,0.00023576,2]
[403027719,1769083842262,-151.3,0.0002359,2]
[403027720,1769083842271,-151.3,0.0002359,2]
[403027721,1769083842281,-135271.78,0.000236,2]
[403027722,1769083842290,-222.0,0.00023629,2]
[403027723,1769083842299,-2586.3010493,0.00023668,2]
[403027724,1769083842309,-6856.0665671,0.00023668,2]
[403027725,1769083842319,-222.0,0.00023691,2]
[403027726,1769083842328,-4609.0,0.0002373,2]
[403027727,1769083842338,-222.0,0.00023767,2]
[403027728,1769083842348,-171.99,0.00023919,2]
[403027729,1769083842358,-222.0,0.00023985,2]
[403027730,1769083842367,-222.0,0.00024041,2]
[403027731,1769083842377,-2801.6,0.00024051,2]
[403027732,1769083842387,-222.0,0.00024094,2]
[403027733,1769083842396,-1247.68,0.00024174,2]
[403027734,1769083842406,-2106.75,0.00024174,2]
[403027735,1769083842415,-316.26,0.0002418,2]
[403027736,1769083842424,-222.0,0.00024231,2]
[403027737,1769083842434,-150.0,0.00024277,2]
[403027738,1769083842443,-222.0,0.00024277,2]
[403027739,1769083842453,-915.0,0.00024319,2]
[403027740,1769083842462,-1203.0,0.00024319,2]
[403027741,1769083842472,-4828.0,0.00024319,2]
[403027742,1769083842481,-2441.0,0.00024319,2]
[403027743,1769083842491,-6565.0,0.00024319,2]
[403027744,1769083842500,-162.73600609,0.00024447,2]
[403027745,1769083842510,-150.0,0.00024517,2]
[403027746,1769083842519,-150.0,0.00024517,2]
[403027747,1769083842528,-1332.0,0.00024517,2]
[403027748,1769083842538,-615.0,0.00024517,2]
[403027749,1769083842547,-1407.0,0.00024517,2]
[403027750,1769083842556,-276.0,0.00024517,2]
[403027751,1769083842565,-1318.3797362,0.00024517,2]
[403027752,1769083842575,-222.0,0.00024531,2]
[403027753,1769083842583,-374.94,0.00024658,2]
[403027754,1769083842593,-1000.0,0.00024658,2]
[403027755,1769083842601,-222.0,0.00024673,2]
[403027756,1769083842611,-10691.06590368,0.00024816,2]
[403027757,1769083842620,-222.0,0.00024867,2]
[403027758,1769083842629,-500.0,0.00024873,2]
[403027759,1769083842639,-150.0,0.00024873,2]
[403027760,1769083842648,-500.0,0.00024873,2]
[403027761,1769083842657,-500.0,0.00024873,2]
[403027762,1769083842667,-500.0,0.00024873,2]
[403027763,1769083842676,-573.0106482,0.00024873,2]
[403027764,1769083842686,-504.31498541,0.00024873,2]
[403027765,1769083842695,-507.70713806,0.00024873,2]
[403027766,1769083842704,-500.0,0.00024873,2]
[403027767,1769083842713,-243.91713323,0.00024873,2]
[403027768,1769083842723,-500.0,0.00024873,2]
[403027769,1769083842731,-500.0,0.00024873,2]
[403027770,1769083842740,-501.55766081,0.00024873,2]
[403027771,1769083842750,-502.99504491,0.00024873,2]
[403027772,1769083842763,-503.12079834,0.00024873,2]
[403027773,1769083842772,-165.63676195,0.00024873,2]
[403027774,1769083842782,-562.63678791,0.00024873,2]
[403027775,1769083842792,-500.0,0.00024873,2]
[403027776,1769083842801,-503.20837636,0.00024873,2]
[403027777,1769083842810,-500.0,0.00024873,2]
[403027778,1769083842819,-151.3,0.0002489,2]
[403027779,1769083842829,-151.3,0.0002489,2]
[403027780,1769083842838,-151.3,0.0002489,2]
[403027781,1769083842847,-151.3,0.0002489,2]
[403027782,1769083842857,-151.3,0.0002489,2]
[403027783,1769083842867,-151.0,0.000249,7]
[403027784,1769083842876,-384389.12418324,0.000249,2]
[403027785,1769083842927,-2169.58896356,0.000249,2]
[403027791,1769083843442,-612.70882765,0.00016328,2]
[403027792,1769083843453,-2325.27640236,0.00016328,2]
[403027793,1769083843465,-965.92,0.00016328,2]
[403027796,1769083844312,-6482.37551997,0.00016328,2]